[Event "Titled Tuesday Blitz February 22 Late 2022"]
[White "Paravyan, David"]
[Black "Kamsky, Gata"]
[WhiteFideId "4194985"]
[BlackFideId "2000024"]
[WhiteElo "2569"]
[BlackElo "2645"]
[Result "1/2-1/2"]
[Round "05"]
[TimeControl "180+1"]
[Date "2022.02.22"]
[WhiteClock "0:00:04"]
[BlackClock "0:00:08"]

1. e4 {[%clk 0:03:00]}  c5 {[%clk 0:02:56]} 2. Nf3 {[%clk 0:03:00]}  e6 {[%clk 0:02:56]} 3. d4 {[%clk 0:03:01]}  cxd4 {[%clk 0:02:56]} 4. Nxd4 {[%clk 0:03:02]}  a6 {[%clk 0:02:56]} 5. Nc3 {[%clk 0:03:02]}  b5 {[%clk 0:02:53]} 6. Bd3 {[%clk 0:03:02]}  Qb6 {[%clk 0:02:51]} 7. Nb3 {[%clk 0:03:00]}  Qc7 {[%clk 0:02:50]} 8. O-O {[%clk 0:03:00]}  Bb7 {[%clk 0:02:37]} 9. Re1 {[%clk 0:02:59]}  Nf6 {[%clk 0:02:32]} 10. e5 {[%clk 0:02:52]}  Nd5 {[%clk 0:02:30]} 11. Nxd5 {[%clk 0:02:40]}  Bxd5 {[%clk 0:02:29]} 12. Bf4 {[%clk 0:02:40]}  Nc6 {[%clk 0:02:12]} 13. Be4 {[%clk 0:02:34]}  Nb4 {[%clk 0:01:40]} 14. c3 {[%clk 0:02:21]}  Bxe4 {[%clk 0:01:38]} 15. Rxe4 {[%clk 0:02:22]}  Nd5 {[%clk 0:01:38]} 16. Bg3 {[%clk 0:02:23]}  Be7 {[%clk 0:01:33]} 17. Qh5 {[%clk 0:02:16]}  O-O {[%clk 0:01:26]} 18. Rd1 {[%clk 0:02:02]}  Qb7 {[%clk 0:01:15]} 19. Red4 {[%clk 0:01:28]}  Rac8 {[%clk 0:01:06]} 20. Bh4 {[%clk 0:01:24]}  f6 {[%clk 0:00:56]} 21. h3 {[%clk 0:00:53]}  Rf7 {[%clk 0:00:54]} 22. exf6 {[%clk 0:00:43]}  Bxf6 {[%clk 0:00:51]} 23. Bxf6 {[%clk 0:00:40]}  Rxf6 {[%clk 0:00:50]} 24. Na5 {[%clk 0:00:25]}  Qc7 {[%clk 0:00:32]} 25. Rxd5 {[%clk 0:00:09]}  exd5 {[%clk 0:00:31]} 26. Qxd5+ {[%clk 0:00:10]}  Rf7 {[%clk 0:00:15]} 27. Nb7 {[%clk 0:00:10]}  Qb6 {[%clk 0:00:10]} 28. Nd6 {[%clk 0:00:08]}  Qxf2+ {[%clk 0:00:10]} 29. Kh1 {[%clk 0:00:08]}  Rf8 {[%clk 0:00:10]} 30. b4 {[%clk 0:00:04]}  h6 {[%clk 0:00:08]} 31. Rd3 {[%clk 0:00:03]}  Kh7 {[%clk 0:00:07]} 32. Nxf7 {[%clk 0:00:03]}  Rxf7 {[%clk 0:00:08]} 33. Kh2 {[%clk 0:00:04]}  Qf4+ {[%clk 0:00:07]} 34. Kh1 {[%clk 0:00:02]}  Qf1+ {[%clk 0:00:07]} 35. Kh2 {[%clk 0:00:03]}  Qf4+ {[%clk 0:00:07]} 36. Kh1 {[%clk 0:00:04]}  Qf1+ {[%clk 0:00:08]} 37. Kh2 {[%clk 0:00:04]}  Qf4+ {[%clk 0:00:08]} 1/2-1/2


[Site "https://www.chess.com"]

[Event "Titled Tuesday Blitz February 22 Late 2022"]
[White "Salimova, Nurgyul"]
[Black "Ibarra Jerez, Jose Carlos"]
[WhiteFideId "2915138"]
[BlackFideId "2226332"]
[WhiteElo "2185"]
[BlackElo "2626"]
[Result "1-0"]
[Round "05"]
[TimeControl "180+1"]
[Date "2022.02.22"]
[WhiteClock "0:00:25"]
[BlackClock "0:00:02"]

1. d4 {[%clk 0:03:00]}  Nf6 {[%clk 0:02:59]} 2. Nf3 {[%clk 0:03:00]}  g6 {[%clk 0:02:59]} 3. Nbd2 {[%clk 0:03:00]}  Bg7 {[%clk 0:02:57]} 4. e4 {[%clk 0:02:58]}  d6 {[%clk 0:02:56]} 5. Bb5+ {[%clk 0:02:58]}  Nbd7 {[%clk 0:02:54]} 6. Bd3 {[%clk 0:02:59]}  O-O {[%clk 0:02:54]} 7. O-O {[%clk 0:02:57]}  e5 {[%clk 0:02:54]} 8. dxe5 {[%clk 0:02:53]}  dxe5 {[%clk 0:02:53]} 9. Nc4 {[%clk 0:02:45]}  Re8 {[%clk 0:02:52]} 10. Qe2 {[%clk 0:02:37]}  Nh5 {[%clk 0:02:48]} 11. Bg5 {[%clk 0:02:34]}  Bf6 {[%clk 0:02:43]} 12. Be3 {[%clk 0:02:29]}  b6 {[%clk 0:02:37]} 13. Rfd1 {[%clk 0:02:23]}  Bb7 {[%clk 0:02:35]} 14. a4 {[%clk 0:02:21]}  Nf4 {[%clk 0:02:26]} 15. Bxf4 {[%clk 0:02:21]}  exf4 {[%clk 0:02:27]} 16. c3 {[%clk 0:02:06]}  Qe7 {[%clk 0:02:25]} 17. Bc2 {[%clk 0:01:22]}  Rad8 {[%clk 0:02:24]} 18. a5 {[%clk 0:01:13]}  b5 {[%clk 0:02:18]} 19. a6 {[%clk 0:01:13]}  Ba8 {[%clk 0:02:07]} 20. Na5 {[%clk 0:01:11]}  b4 {[%clk 0:02:07]} 21. Nb7 {[%clk 0:01:04]}  bxc3 {[%clk 0:01:57]} 22. bxc3 {[%clk 0:01:00]}  Bxc3 {[%clk 0:01:27]} 23. Rac1 {[%clk 0:00:55]}  Bxb7 {[%clk 0:01:12]} 24. axb7 {[%clk 0:00:56]}  Nc5 {[%clk 0:01:13]} 25. Qb5 {[%clk 0:00:52]}  Rb8 {[%clk 0:01:07]} 26. Ba4 {[%clk 0:00:50]}  Nxa4 {[%clk 0:01:04]} 27. Qxa4 {[%clk 0:00:51]}  Qb4 {[%clk 0:00:24]} 28. Qxb4 {[%clk 0:00:45]}  Bxb4 {[%clk 0:00:25]} 29. Rxc7 {[%clk 0:00:46]}  a5 {[%clk 0:00:24]} 30. Nd4 {[%clk 0:00:43]}  Bd6 {[%clk 0:00:06]} 31. Rd7 {[%clk 0:00:41]}  a4 {[%clk 0:00:04]} 32. Nc6 {[%clk 0:00:40]}  a3 {[%clk 0:00:03]} 33. R1xd6 {[%clk 0:00:38]}  a2 {[%clk 0:00:02]} 34. Rd1 {[%clk 0:00:39]}  Rxe4 {[%clk 0:00:01]} 35. Nxb8 {[%clk 0:00:35]}  Rb4 {[%clk 0:00:01]} 36. Ra1 {[%clk 0:00:32]}  Rb1+ {[%clk 0:00:01]} 37. Rd1 {[%clk 0:00:32]}  Rxb7 {[%clk 0:00:02]} 38. Nc6 {[%clk 0:00:32]}  Rb2 {[%clk 0:00:02]} 39. Nb4 {[%clk 0:00:30]}  Rxb4 {[%clk 0:00:01]} 40. Rxa2 {[%clk 0:00:30]}  Kg7 {[%clk 0:00:02]} 41. Rad2 {[%clk 0:00:30]}  g5 {[%clk 0:00:02]} 42. h3 {[%clk 0:00:25]}  Kg6 {[%clk 0:00:02]} 43. Rd5 {[%clk 0:00:25]}  f6 {[%clk 0:00:02]} 44. Rc5 {[%clk 0:00:25]}  h5 {[%clk 0:00:02]} 45. Kh2 {[%clk 0:00:25]}  Rb2 {[%clk 0:00:03]} 46. f3 {[%clk 0:00:26]}  Rc2 {[%clk 0:00:02]} 47. Rxc2 {[%clk 0:00:25]} 1-0


[Site "https://www.chess.com"]

[Event "Titled Tuesday Blitz February 22 Late 2022"]
[White "Saraci, Nderim"]
[Black "Wieczorek, Oskar"]
[WhiteFideId "6351921"]
[BlackFideId "1133950"]
[WhiteElo "2573"]
[BlackElo "2319"]
[Result "1-0"]
[Round "05"]
[TimeControl "180+1"]
[Date "2022.02.22"]
[WhiteClock "0:00:12"]
[BlackClock "0:00:03"]

1. d4 {[%clk 0:02:59]}  Nf6 {[%clk 0:02:59]} 2. c4 {[%clk 0:02:59]}  e6 {[%clk 0:02:59]} 3. Nc3 {[%clk 0:02:59]}  d5 {[%clk 0:02:59]} 4. Bg5 {[%clk 0:02:58]}  c6 {[%clk 0:02:57]} 5. e3 {[%clk 0:02:58]}  Nbd7 {[%clk 0:02:54]} 6. Nf3 {[%clk 0:02:58]}  Qa5 {[%clk 0:02:54]} 7. cxd5 {[%clk 0:02:52]}  exd5 {[%clk 0:02:51]} 8. Bd3 {[%clk 0:02:51]}  Ne4 {[%clk 0:02:50]} 9. O-O {[%clk 0:02:26]}  Nxg5 {[%clk 0:02:21]} 10. Nxg5 {[%clk 0:02:23]}  Be7 {[%clk 0:01:51]} 11. Qh5 {[%clk 0:01:56]}  g6 {[%clk 0:01:48]} 12. Qh6 {[%clk 0:01:55]}  Bf8 {[%clk 0:01:33]} 13. Qh4 {[%clk 0:01:53]}  Qd8 {[%clk 0:01:29]} 14. Qg3 {[%clk 0:01:50]}  Be7 {[%clk 0:01:22]} 15. h4 {[%clk 0:01:10]}  Nf6 {[%clk 0:01:17]} 16. e4 {[%clk 0:01:04]}  dxe4 {[%clk 0:00:51]} 17. Ncxe4 {[%clk 0:01:03]}  Nxe4 {[%clk 0:00:48]} 18. Bxe4 {[%clk 0:01:00]}  O-O {[%clk 0:00:48]} 19. Rad1 {[%clk 0:00:59]}  Qd6 {[%clk 0:00:38]} 20. d5 {[%clk 0:00:20]}  c5 {[%clk 0:00:27]} 21. f4 {[%clk 0:00:13]}  f5 {[%clk 0:00:22]} 22. Bc2 {[%clk 0:00:12]}  Bf6 {[%clk 0:00:23]} 23. h5 {[%clk 0:00:11]}  Bd4+ {[%clk 0:00:08]} 24. Kh2 {[%clk 0:00:12]}  Qf6 {[%clk 0:00:07]} 25. d6 {[%clk 0:00:11]}  Rd8 {[%clk 0:00:04]} 26. Bb3+ {[%clk 0:00:11]}  Kg7 {[%clk 0:00:04]} 27. h6+ {[%clk 0:00:12]}  Kh8 {[%clk 0:00:03]} 28. Nf7+ {[%clk 0:00:12]} 1-0


[Site "https://www.chess.com"]

[Event "Titled Tuesday Blitz February 22 Late 2022"]
[White "Sarana, Alexey"]
[Black "Pultinevicius, Paulius"]
[WhiteFideId "24133795"]
[BlackFideId "12809390"]
[WhiteElo "2665"]
[BlackElo "2413"]
[Result "0-1"]
[Round "05"]
[TimeControl "180+1"]
[Date "2022.02.22"]
[WhiteClock "0:00:11"]
[BlackClock "0:00:05"]

1. d4 {[%clk 0:02:55]}  Nf6 {[%clk 0:02:56]} 2. c4 {[%clk 0:02:55]}  g6 {[%clk 0:02:54]} 3. Nc3 {[%clk 0:02:55]}  d5 {[%clk 0:02:54]} 4. cxd5 {[%clk 0:02:55]}  Nxd5 {[%clk 0:02:55]} 5. e4 {[%clk 0:02:56]}  Nxc3 {[%clk 0:02:56]} 6. bxc3 {[%clk 0:02:57]}  Bg7 {[%clk 0:02:56]} 7. Be3 {[%clk 0:02:58]}  c5 {[%clk 0:02:55]} 8. Qd2 {[%clk 0:02:58]}  Qa5 {[%clk 0:02:49]} 9. Rc1 {[%clk 0:02:57]}  O-O {[%clk 0:02:39]} 10. Nf3 {[%clk 0:02:55]}  Rd8 {[%clk 0:02:39]} 11. d5 {[%clk 0:02:55]}  e6 {[%clk 0:02:37]} 12. Bg5 {[%clk 0:02:54]}  f6 {[%clk 0:02:33]} 13. Be3 {[%clk 0:02:54]}  Nc6 {[%clk 0:02:29]} 14. h4 {[%clk 0:02:54]}  h5 {[%clk 0:01:58]} 15. Bd3 {[%clk 0:02:45]}  b6 {[%clk 0:01:52]} 16. O-O {[%clk 0:01:38]}  exd5 {[%clk 0:01:43]} 17. exd5 {[%clk 0:01:39]}  Ne7 {[%clk 0:01:42]} 18. d6 {[%clk 0:01:37]}  Nf5 {[%clk 0:01:31]} 19. Bf4 {[%clk 0:01:37]}  Bd7 {[%clk 0:01:08]} 20. Rfe1 {[%clk 0:01:34]}  Re8 {[%clk 0:01:06]} 21. Bc4+ {[%clk 0:00:56]}  Kh7 {[%clk 0:01:05]} 22. Bf7 {[%clk 0:00:56]}  Rxe1+ {[%clk 0:01:02]} 23. Rxe1 {[%clk 0:00:57]}  Qa4 {[%clk 0:00:59]} 24. Bb3 {[%clk 0:00:53]}  Qb5 {[%clk 0:00:51]} 25. Re4 {[%clk 0:00:42]}  Rd8 {[%clk 0:00:42]} 26. Ba4 {[%clk 0:00:29]}  Qa6 {[%clk 0:00:31]} 27. Bxd7 {[%clk 0:00:28]}  Rxd7 {[%clk 0:00:32]} 28. Re8 {[%clk 0:00:28]}  Qc4 {[%clk 0:00:28]} 29. Rc8 {[%clk 0:00:26]}  Qe6 {[%clk 0:00:20]} 30. Rc7 {[%clk 0:00:24]}  Bf8 {[%clk 0:00:20]} 31. c4 {[%clk 0:00:20]}  Bxd6 {[%clk 0:00:08]} 32. Bxd6 {[%clk 0:00:20]}  Nxd6 {[%clk 0:00:09]} 33. Rc6 {[%clk 0:00:20]}  Qe7 {[%clk 0:00:05]} 34. Qf4 {[%clk 0:00:21]}  Nf5 {[%clk 0:00:04]} 35. Qb8 {[%clk 0:00:18]}  Rd1+ {[%clk 0:00:04]} 36. Kh2 {[%clk 0:00:18]}  Rd8 {[%clk 0:00:05]} 37. Qf4 {[%clk 0:00:14]}  Rd7 {[%clk 0:00:04]} 38. g4 {[%clk 0:00:14]}  hxg4 {[%clk 0:00:04]} 39. Qxg4 {[%clk 0:00:14]}  Ng7 {[%clk 0:00:03]} 40. Rc8 {[%clk 0:00:11]}  Rc7 {[%clk 0:00:03]} 41. Rb8 {[%clk 0:00:09]}  Qd6+ {[%clk 0:00:03]} 42. Kg2 {[%clk 0:00:09]}  Re7 {[%clk 0:00:03]} 43. Qc8 {[%clk 0:00:09]}  Re8 {[%clk 0:00:04]} 44. Qxe8 {[%clk 0:00:09]}  Nxe8 {[%clk 0:00:05]} 45. Rxe8 {[%clk 0:00:09]}  Qd7 {[%clk 0:00:04]} 46. Re3 {[%clk 0:00:09]}  Qg4+ {[%clk 0:00:04]} 47. Kh2 {[%clk 0:00:09]}  Qxc4 {[%clk 0:00:03]} 48. Re7+ {[%clk 0:00:10]}  Kh6 {[%clk 0:00:03]} 49. Rxa7 {[%clk 0:00:11]}  Qf4+ {[%clk 0:00:04]} 50. Kg1 {[%clk 0:00:10]}  Qxf3 {[%clk 0:00:04]} 51. Ra4 {[%clk 0:00:10]}  Qd1+ {[%clk 0:00:04]} 52. Kg2 {[%clk 0:00:11]}  Qxa4 {[%clk 0:00:05]} 0-1


[Site "https://www.chess.com"]

[Event "Titled Tuesday Blitz February 22 Late 2022"]
[White "Sargsyan, Anna M."]
[Black "Devaev, Alexander"]
[WhiteFideId "13308130"]
[BlackFideId "4169395"]
[WhiteElo "2271"]
[BlackElo "2185"]
[Result "1-0"]
[Round "05"]
[TimeControl "180+1"]
[Date "2022.02.23"]
[WhiteClock "0:00:30"]
[BlackClock "0:00:03"]

1. d4 {[%clk 0:03:00]}  Nf6 {[%clk 0:02:59]} 2. c4 {[%clk 0:03:01]}  e6 {[%clk 0:02:59]} 3. Nf3 {[%clk 0:03:00]}  c5 {[%clk 0:02:59]} 4. Nc3 {[%clk 0:02:54]}  cxd4 {[%clk 0:02:58]} 5. Nxd4 {[%clk 0:02:54]}  a6 {[%clk 0:02:59]} 6. e4 {[%clk 0:02:54]}  d6 {[%clk 0:02:58]} 7. Bd3 {[%clk 0:02:52]}  Nc6 {[%clk 0:02:59]} 8. Nxc6 {[%clk 0:02:51]}  bxc6 {[%clk 0:02:59]} 9. O-O {[%clk 0:02:52]}  Be7 {[%clk 0:02:59]} 10. b3 {[%clk 0:02:52]}  Qc7 {[%clk 0:02:59]} 11. Bb2 {[%clk 0:02:52]}  O-O {[%clk 0:02:59]} 12. Rc1 {[%clk 0:02:52]}  c5 {[%clk 0:02:57]} 13. Re1 {[%clk 0:02:50]}  Bb7 {[%clk 0:02:57]} 14. Bb1 {[%clk 0:02:51]}  Bc6 {[%clk 0:02:51]} 15. h3 {[%clk 0:02:50]}  Nd7 {[%clk 0:02:46]} 16. Ne2 {[%clk 0:02:47]}  Bf6 {[%clk 0:02:38]} 17. Bxf6 {[%clk 0:02:44]}  Nxf6 {[%clk 0:02:39]} 18. Ng3 {[%clk 0:02:44]}  a5 {[%clk 0:02:37]} 19. Nh5 {[%clk 0:02:34]}  Nxh5 {[%clk 0:01:57]} 20. Qxh5 {[%clk 0:02:35]}  e5 {[%clk 0:01:53]} 21. Rc3 {[%clk 0:02:20]}  Rfe8 {[%clk 0:01:45]} 22. Rg3 {[%clk 0:02:18]}  Re6 {[%clk 0:01:45]} 23. Bc2 {[%clk 0:02:00]}  a4 {[%clk 0:01:44]} 24. Bd1 {[%clk 0:01:55]}  axb3 {[%clk 0:01:41]} 25. axb3 {[%clk 0:01:55]}  Ra1 {[%clk 0:01:33]} 26. Kh2 {[%clk 0:01:54]}  Rg6 {[%clk 0:01:20]} 27. Ree3 {[%clk 0:01:40]}  Rxg3 {[%clk 0:01:00]} 28. Kxg3 {[%clk 0:01:21]}  g6 {[%clk 0:00:54]} 29. Qe2 {[%clk 0:01:20]}  Kg7 {[%clk 0:00:38]} 30. Qd2 {[%clk 0:01:19]}  Bd7 {[%clk 0:00:37]} 31. Rd3 {[%clk 0:01:16]}  Ra6 {[%clk 0:00:36]} 32. f4 {[%clk 0:01:13]}  Be6 {[%clk 0:00:32]} 33. f5 {[%clk 0:01:11]}  gxf5 {[%clk 0:00:29]} 34. Qg5+ {[%clk 0:01:11]}  Kf8 {[%clk 0:00:27]} 35. exf5 {[%clk 0:01:11]}  e4 {[%clk 0:00:20]} 36. Re3 {[%clk 0:01:05]}  d5+ {[%clk 0:00:20]} 37. Qf4 {[%clk 0:00:59]}  Qxf4+ {[%clk 0:00:16]} 38. Kxf4 {[%clk 0:00:59]}  d4 {[%clk 0:00:14]} 39. Rxe4 {[%clk 0:00:59]}  Bd7 {[%clk 0:00:14]} 40. Re5 {[%clk 0:00:58]}  Rc6 {[%clk 0:00:14]} 41. Rd5 {[%clk 0:00:55]}  Be8 {[%clk 0:00:14]} 42. g4 {[%clk 0:00:54]}  f6 {[%clk 0:00:13]} 43. Bf3 {[%clk 0:00:53]}  h6 {[%clk 0:00:11]} 44. h4 {[%clk 0:00:45]}  Rb6 {[%clk 0:00:11]} 45. Rxc5 {[%clk 0:00:40]}  Rxb3 {[%clk 0:00:11]} 46. Be4 {[%clk 0:00:33]}  Rh3 {[%clk 0:00:09]} 47. Rd5 {[%clk 0:00:33]}  Rxh4 {[%clk 0:00:08]} 48. Kg3 {[%clk 0:00:31]}  d3 {[%clk 0:00:03]} 49. Rxd3 {[%clk 0:00:30]} 1-0


[Site "https://www.chess.com"]

[Event "Titled Tuesday Blitz February 22 Late 2022"]
[White "Savchenko, Boris"]
[Black "Jacobson, Aaron"]
[WhiteFideId "4147332"]
[BlackFideId "2089912"]
[WhiteElo "2512"]
[BlackElo "2265"]
[Result "1-0"]
[Round "05"]
[TimeControl "180+1"]
[Date "2022.02.23"]
[WhiteClock "0:00:33"]
[BlackClock "0:00:01"]

1. g4 {[%clk 0:03:00]}  d5 {[%clk 0:02:52]} 2. Bg2 {[%clk 0:03:00]}  Bxg4 {[%clk 0:02:52]} 3. c4 {[%clk 0:02:59]}  e6 {[%clk 0:02:53]} 4. Qb3 {[%clk 0:02:58]}  Nf6 {[%clk 0:02:49]} 5. cxd5 {[%clk 0:02:55]}  exd5 {[%clk 0:02:47]} 6. Qxb7 {[%clk 0:02:55]}  Nbd7 {[%clk 0:02:46]} 7. Qc6 {[%clk 0:02:34]}  Bc5 {[%clk 0:02:23]} 8. Nc3 {[%clk 0:02:21]}  O-O {[%clk 0:02:10]} 9. Nxd5 {[%clk 0:02:18]}  Nxd5 {[%clk 0:02:06]} 10. Qxd5 {[%clk 0:02:18]}  Rb8 {[%clk 0:02:06]} 11. d3 {[%clk 0:02:06]}  Qh4 {[%clk 0:01:36]} 12. d4 {[%clk 0:02:05]}  Bb4+ {[%clk 0:01:30]} 13. Kf1 {[%clk 0:02:05]}  Rfe8 {[%clk 0:01:28]} 14. Bg5 {[%clk 0:02:00]}  Qh5 {[%clk 0:01:17]} 15. Be3 {[%clk 0:02:00]}  Qg6 {[%clk 0:00:54]} 16. Rc1 {[%clk 0:01:54]}  Bd6 {[%clk 0:00:24]} 17. b3 {[%clk 0:01:44]}  h6 {[%clk 0:00:24]} 18. Nf3 {[%clk 0:01:27]}  Be6 {[%clk 0:00:13]} 19. Qa5 {[%clk 0:01:24]}  Nf6 {[%clk 0:00:11]} 20. Ne5 {[%clk 0:01:11]}  Qh7 {[%clk 0:00:02]} 21. h3 {[%clk 0:01:02]}  Nd7 {[%clk 0:00:02]} 22. Bc6 {[%clk 0:00:58]}  Nxe5 {[%clk 0:00:02]} 23. dxe5 {[%clk 0:00:58]}  Bb4 {[%clk 0:00:02]} 24. Qxa7 {[%clk 0:00:56]}  Red8 {[%clk 0:00:02]} 25. Bf3 {[%clk 0:00:41]}  Qf5 {[%clk 0:00:01]} 26. Kg2 {[%clk 0:00:38]}  c5 {[%clk 0:00:01]} 27. a3 {[%clk 0:00:33]} 1-0


[Site "https://www.chess.com"]

[Event "Titled Tuesday Blitz February 22 Late 2022"]
[White "Saveliev, Alexei"]
[Black "Dreev, Aleksey"]
[WhiteFideId "24128546"]
[BlackFideId "4100107"]
[WhiteElo "2281"]
[BlackElo "2636"]
[Result "0-1"]
[Round "05"]
[TimeControl "180+1"]
[Date "2022.02.22"]
[WhiteClock "0:00:17"]
[BlackClock "0:00:11"]

1. c4 {[%clk 0:03:00]}  c6 {[%clk 0:03:00]} 2. Nc3 {[%clk 0:03:01]}  d5 {[%clk 0:03:01]} 3. cxd5 {[%clk 0:03:01]}  cxd5 {[%clk 0:03:01]} 4. d4 {[%clk 0:03:02]}  Nf6 {[%clk 0:03:01]} 5. Nf3 {[%clk 0:03:03]}  Nc6 {[%clk 0:03:00]} 6. Bf4 {[%clk 0:03:03]}  e6 {[%clk 0:03:01]} 7. e3 {[%clk 0:03:03]}  Bd6 {[%clk 0:03:01]} 8. Bg5 {[%clk 0:03:03]}  h6 {[%clk 0:02:59]} 9. Bh4 {[%clk 0:03:03]}  Qb6 {[%clk 0:02:58]} 10. Qb3 {[%clk 0:02:52]}  Qxb3 {[%clk 0:02:57]} 11. axb3 {[%clk 0:02:53]}  Bd7 {[%clk 0:02:46]} 12. Bb5 {[%clk 0:02:45]}  O-O {[%clk 0:02:38]} 13. Bxf6 {[%clk 0:02:30]}  gxf6 {[%clk 0:02:38]} 14. Ke2 {[%clk 0:02:30]}  Rfc8 {[%clk 0:02:35]} 15. Rhc1 {[%clk 0:02:28]}  Kf8 {[%clk 0:02:21]} 16. g3 {[%clk 0:02:20]}  Bb4 {[%clk 0:02:19]} 17. Na4 {[%clk 0:02:09]}  Ke7 {[%clk 0:01:34]} 18. Nc5 {[%clk 0:01:58]}  Bxc5 {[%clk 0:01:34]} 19. Rxc5 {[%clk 0:01:57]}  Kd6 {[%clk 0:01:31]} 20. Rac1 {[%clk 0:01:51]}  Rc7 {[%clk 0:01:31]} 21. Kd2 {[%clk 0:01:37]}  Rac8 {[%clk 0:01:28]} 22. Bxc6 {[%clk 0:01:27]}  Bxc6 {[%clk 0:01:23]} 23. Ne1 {[%clk 0:01:23]}  b6 {[%clk 0:01:06]} 24. R5c3 {[%clk 0:01:22]}  Bb5 {[%clk 0:01:07]} 25. Rxc7 {[%clk 0:01:22]}  Rxc7 {[%clk 0:01:08]} 26. Rxc7 {[%clk 0:01:20]}  Kxc7 {[%clk 0:01:08]} 27. h4 {[%clk 0:01:18]}  Kd6 {[%clk 0:01:00]} 28. Nf3 {[%clk 0:01:10]}  e5 {[%clk 0:00:58]} 29. Nh2 {[%clk 0:01:07]}  Ke6 {[%clk 0:00:54]} 30. Ng4 {[%clk 0:00:51]}  h5 {[%clk 0:00:52]} 31. Nh6 {[%clk 0:00:50]}  Bd7 {[%clk 0:00:37]} 32. Ke2 {[%clk 0:00:28]}  Ke7 {[%clk 0:00:35]} 33. f3 {[%clk 0:00:20]}  Kf8 {[%clk 0:00:34]} 34. g4 {[%clk 0:00:20]}  e4 {[%clk 0:00:25]} 35. fxe4 {[%clk 0:00:12]}  dxe4 {[%clk 0:00:22]} 36. Nf5 {[%clk 0:00:11]}  hxg4 {[%clk 0:00:22]} 37. Ng3 {[%clk 0:00:11]}  f5 {[%clk 0:00:19]} 38. Kf2 {[%clk 0:00:10]}  Be6 {[%clk 0:00:17]} 39. b4 {[%clk 0:00:09]}  Kg7 {[%clk 0:00:09]} 40. Nh5+ {[%clk 0:00:10]}  Kh6 {[%clk 0:00:07]} 41. Nf4 {[%clk 0:00:10]}  Bb3 {[%clk 0:00:07]} 42. Kg3 {[%clk 0:00:10]}  Kg7 {[%clk 0:00:07]} 43. Ng2 {[%clk 0:00:10]}  Kg6 {[%clk 0:00:07]} 44. Kf4 {[%clk 0:00:08]}  f6 {[%clk 0:00:06]} 45. h5+ {[%clk 0:00:06]}  Kxh5 {[%clk 0:00:06]} 46. Kxf5 {[%clk 0:00:07]}  a5 {[%clk 0:00:06]} 47. bxa5 {[%clk 0:00:06]}  bxa5 {[%clk 0:00:06]} 48. Kxf6 {[%clk 0:00:04]}  g3 {[%clk 0:00:06]} 49. Kf5 {[%clk 0:00:04]}  Bd1 {[%clk 0:00:05]} 50. Kxe4 {[%clk 0:00:02]}  Kg4 {[%clk 0:00:05]} 51. d5 {[%clk 0:00:02]}  Bf3+ {[%clk 0:00:05]} 52. Kd4 {[%clk 0:00:03]}  Bxg2 {[%clk 0:00:06]} 53. e4 {[%clk 0:00:03]}  Bxe4 {[%clk 0:00:05]} 54. Kxe4 {[%clk 0:00:03]}  g2 {[%clk 0:00:06]} 55. d6 {[%clk 0:00:04]}  g1=Q {[%clk 0:00:06]} 56. Ke5 {[%clk 0:00:05]}  Qc5+ {[%clk 0:00:06]} 57. Ke6 {[%clk 0:00:05]}  Qb6 {[%clk 0:00:06]} 58. Ke7 {[%clk 0:00:06]}  Qb4 {[%clk 0:00:06]} 59. Ke6 {[%clk 0:00:05]}  Qb3+ {[%clk 0:00:07]} 60. Ke7 {[%clk 0:00:06]}  Qxb2 {[%clk 0:00:07]} 61. d7 {[%clk 0:00:07]}  Qb7 {[%clk 0:00:07]} 62. Ke8 {[%clk 0:00:07]}  Qxd7+ {[%clk 0:00:07]} 63. Kxd7 {[%clk 0:00:08]}  a4 {[%clk 0:00:08]} 64. Kc6 {[%clk 0:00:09]}  a3 {[%clk 0:00:08]} 65. Kc5 {[%clk 0:00:10]}  a2 {[%clk 0:00:09]} 66. Kc4 {[%clk 0:00:11]}  a1=Q {[%clk 0:00:09]} 67. Kb4 {[%clk 0:00:12]}  Qb2+ {[%clk 0:00:09]} 68. Kc4 {[%clk 0:00:12]}  Qc2+ {[%clk 0:00:10]} 69. Kd5 {[%clk 0:00:13]}  Qc3 {[%clk 0:00:10]} 70. Ke4 {[%clk 0:00:14]}  Qd2 {[%clk 0:00:09]} 71. Ke5 {[%clk 0:00:14]}  Qd3 {[%clk 0:00:10]} 72. Ke6 {[%clk 0:00:14]}  Qd4 {[%clk 0:00:10]} 73. Ke7 {[%clk 0:00:15]}  Qd5 {[%clk 0:00:10]} 74. Kf6 {[%clk 0:00:15]}  Kf4 {[%clk 0:00:10]} 75. Kg7 {[%clk 0:00:16]}  Qe6 {[%clk 0:00:10]} 76. Kh8 {[%clk 0:00:15]}  Qe7 {[%clk 0:00:10]} 77. Kg8 {[%clk 0:00:15]}  Kg5 {[%clk 0:00:10]} 78. Kh8 {[%clk 0:00:16]}  Kg6 {[%clk 0:00:10]} 79. Kg8 {[%clk 0:00:17]}  Qe8# {[%clk 0:00:11]} 0-1


[Site "https://www.chess.com"]

[Event "Titled Tuesday Blitz February 22 Late 2022"]
[White "Sevian, Samuel"]
[Black "Indjic, Aleksandar"]
[WhiteFideId "2040506"]
[BlackFideId "911925"]
[WhiteElo "2698"]
[BlackElo "2616"]
[Result "0-1"]
[Round "05"]
[TimeControl "180+1"]
[Date "2022.02.22"]
[WhiteClock "0:00:03"]
[BlackClock "0:00:19"]

1. e4 {[%clk 0:03:00]}  d5 {[%clk 0:02:59]} 2. exd5 {[%clk 0:02:57]}  Qxd5 {[%clk 0:03:00]} 3. Nc3 {[%clk 0:02:57]}  Qd6 {[%clk 0:03:00]} 4. Nb5 {[%clk 0:02:55]}  Qd8 {[%clk 0:02:36]} 5. d4 {[%clk 0:02:54]}  a6 {[%clk 0:02:34]} 6. Nc3 {[%clk 0:02:55]}  Nf6 {[%clk 0:02:33]} 7. Be3 {[%clk 0:02:54]}  e6 {[%clk 0:02:32]} 8. Nf3 {[%clk 0:02:52]}  b5 {[%clk 0:02:32]} 9. Bd3 {[%clk 0:02:52]}  Bb7 {[%clk 0:02:31]} 10. O-O {[%clk 0:02:51]}  Nbd7 {[%clk 0:02:32]} 11. Re1 {[%clk 0:02:44]}  c5 {[%clk 0:02:31]} 12. a4 {[%clk 0:02:38]}  c4 {[%clk 0:02:25]} 13. Be2 {[%clk 0:02:32]}  b4 {[%clk 0:02:23]} 14. Nb1 {[%clk 0:02:32]}  Rc8 {[%clk 0:02:22]} 15. c3 {[%clk 0:02:32]}  a5 {[%clk 0:02:19]} 16. Nbd2 {[%clk 0:02:30]}  Bd5 {[%clk 0:02:18]} 17. Bf4 {[%clk 0:02:12]}  Be7 {[%clk 0:02:15]} 18. Qc1 {[%clk 0:02:08]}  Nb6 {[%clk 0:02:00]} 19. Bd1 {[%clk 0:02:07]}  b3 {[%clk 0:01:54]} 20. Ne5 {[%clk 0:02:06]}  O-O {[%clk 0:01:54]} 21. Be2 {[%clk 0:02:05]}  Nfd7 {[%clk 0:01:51]} 22. Nf1 {[%clk 0:02:05]}  Nxe5 {[%clk 0:01:50]} 23. Bxe5 {[%clk 0:02:05]}  Qd7 {[%clk 0:01:34]} 24. Ne3 {[%clk 0:02:03]}  Bb7 {[%clk 0:01:33]} 25. Bh5 {[%clk 0:01:19]}  g6 {[%clk 0:00:54]} 26. Ng4 {[%clk 0:01:18]}  f6 {[%clk 0:00:53]} 27. Qh6 {[%clk 0:01:07]}  Qe8 {[%clk 0:00:43]} 28. Nxf6+ {[%clk 0:00:17]}  Bxf6 {[%clk 0:00:41]} 29. Bg4 {[%clk 0:00:18]}  Bd5 {[%clk 0:00:40]} 30. h4 {[%clk 0:00:16]}  Bxe5 {[%clk 0:00:38]} 31. Rxe5 {[%clk 0:00:16]}  Nd7 {[%clk 0:00:38]} 32. Re2 {[%clk 0:00:13]}  Nf6 {[%clk 0:00:38]} 33. Bh3 {[%clk 0:00:13]}  Qf7 {[%clk 0:00:37]} 34. Rae1 {[%clk 0:00:12]}  Rce8 {[%clk 0:00:37]} 35. g3 {[%clk 0:00:09]}  Nh5 {[%clk 0:00:36]} 36. Bg4 {[%clk 0:00:09]}  Ng7 {[%clk 0:00:35]} 37. Qd2 {[%clk 0:00:06]}  h5 {[%clk 0:00:34]} 38. f4 {[%clk 0:00:02]}  hxg4 {[%clk 0:00:33]} 39. Re5 {[%clk 0:00:03]}  Nf5 {[%clk 0:00:32]} 40. Kf2 {[%clk 0:00:02]}  Qf6 {[%clk 0:00:30]} 41. Qe2 {[%clk 0:00:03]}  Nxg3 {[%clk 0:00:27]} 42. Qxg4 {[%clk 0:00:03]}  Nf5 {[%clk 0:00:25]} 43. Rg1 {[%clk 0:00:03]}  Re7 {[%clk 0:00:23]} 44. h5 {[%clk 0:00:03]}  Rh7 {[%clk 0:00:22]} 45. hxg6 {[%clk 0:00:03]}  Rh2+ {[%clk 0:00:21]} 46. Kf1 {[%clk 0:00:03]}  Qxe5 {[%clk 0:00:19]} 0-1


[Site "https://www.chess.com"]